[Event "*** MasterClass Titled Tuesday Blitz"]
[Site "Chess.com"]
[Date "2017.10.03"]
[Round "8"]
[White "guilhermedeola"]
[Black "MatthewG-p4p"]
[Result "0-1"]
[WhiteElo "2057"]
[BlackElo "2581"]
[TimeControl "180+2"]
[EndTime "14:47:43 PDT"]
[Termination "MatthewG-p4p won by resignation"]

1. d4 {[%clk 0:02:59.6]} 1... Nf6 {[%clk 0:02:44.5]} 2. c4 {[%clk 0:03:00.1]}
2... c5 {[%clk 0:02:42.1]} 3. Nf3 {[%clk 0:03:00.2]} 3... cxd4 {[%clk
0:02:38.3]} 4. Nxd4 {[%clk 0:03:01.2]} 4... e5 {[%clk 0:02:39.8]} 5. Nb5 {[%clk
0:03:00.7]} 5... d5 {[%clk 0:02:41]} 6. cxd5 {[%clk 0:03:00.3]} 6... Bc5 {[%clk
0:02:42.1]} 7. N5c3 {[%clk 0:03:00]} 7... O-O {[%clk 0:02:42.7]} 8. h3 {[%clk
0:03:00.4]} 8... e4 {[%clk 0:02:41]} 9. e3 {[%clk 0:03:01.1]} 9... Re8 {[%clk
0:02:38.4]} 10. Nd2 {[%clk 0:02:57.8]} 10... Nbd7 {[%clk 0:02:36.5]} 11. Bb5
{[%clk 0:02:57.9]} 11... a6 {[%clk 0:02:37]} 12. Ba4 {[%clk 0:02:58.6]} 12... b5
{[%clk 0:02:37.7]} 13. Bc2 {[%clk 0:02:58.8]} 13... Bb4 {[%clk 0:02:36.3]} 14.
O-O {[%clk 0:02:56.5]} 14... Bxc3 {[%clk 0:02:36.9]} 15. bxc3 {[%clk 0:02:56.9]}
15... Bb7 {[%clk 0:02:38.4]} 16. c4 {[%clk 0:02:52.4]} 16... Rc8 {[%clk
0:02:38]} 17. cxb5 {[%clk 0:02:49.7]} 17... axb5 {[%clk 0:02:39]} 18. Rb1 {[%clk
0:02:46]} 18... Bxd5 {[%clk 0:02:35.7]} 19. Rxb5 {[%clk 0:02:46.2]} 19... Bxa2
{[%clk 0:02:36.4]} 20. Ba3 {[%clk 0:02:37.3]} 20... Qc7 {[%clk 0:02:35.5]} 21.
Bb3 {[%clk 0:02:32.6]} 21... Qc6 {[%clk 0:02:33.9]} 22. Rg5 {[%clk 0:02:24.8]}
22... Bxb3 {[%clk 0:02:29.9]} 23. Qxb3 {[%clk 0:02:25.1]} 23... Qc2 {[%clk
0:02:27.1]} 24. Qxc2 {[%clk 0:02:19.7]} 24... Rxc2 {[%clk 0:02:28.4]} 25. Rd1
{[%clk 0:02:19.9]} 25... Ra8 {[%clk 0:01:47.8]} 26. Be7 {[%clk 0:02:14.4]} 26...
h6 {[%clk 0:01:42.7]} 27. Rb5 {[%clk 0:01:50.3]} 27... Raa2 {[%clk 0:01:42.8]}
28. Bb4 {[%clk 0:01:22.7]} 28... Rab2 {[%clk 0:01:37.9]} 29. Kf1 {[%clk
0:01:21.1]} 29... Kh7 {[%clk 0:01:30.4]} 30. Ke1 {[%clk 0:01:19.6]} 30... Kg6
{[%clk 0:01:29.5]} 31. Rb1 {[%clk 0:01:19.2]} 31... Rxb1+ {[%clk 0:01:28]} 32.
Nxb1 {[%clk 0:01:18.2]} 32... Rc1+ {[%clk 0:01:29.2]} 0-1

[Event "*** MasterClass Titled Tuesday Blitz"]
[Site "Chess.com"]
[Date "2017.10.03"]
[Round "8"]
[White "nutibara"]
[Black "DrVelja"]
[Result "1-0"]
[WhiteElo "2288"]
[BlackElo "2483"]
[TimeControl "180+2"]
[EndTime "14:47:50 PDT"]
[Termination "nutibara won by resignation"]

1. e4 {[%clk 0:02:59.9]} 1... c5 {[%clk 0:03:00.8]} 2. Nf3 {[%clk 0:03:00.9]}
2... e6 {[%clk 0:03:02.2]} 3. d4 {[%clk 0:03:02.6]} 3... cxd4 {[%clk 0:03:04.1]}
4. Nxd4 {[%clk 0:03:04.5]} 4... Nf6 {[%clk 0:03:05.3]} 5. Nc3 {[%clk 0:03:06]}
5... d6 {[%clk 0:03:06.3]} 6. Be3 {[%clk 0:03:06.4]} 6... Be7 {[%clk 0:03:06.7]}
7. f4 {[%clk 0:03:07.4]} 7... O-O {[%clk 0:03:04.9]} 8. Qf3 {[%clk 0:03:07.3]}
8... e5 {[%clk 0:03:02.7]} 9. Nf5 {[%clk 0:02:52.5]} 9... Bxf5 {[%clk
0:03:02.2]} 10. exf5 {[%clk 0:02:53]} 10... Nbd7 {[%clk 0:03:03.8]} 11. O-O-O
{[%clk 0:02:51.5]} 11... Rc8 {[%clk 0:03:05.2]} 12. Bd2 {[%clk 0:02:38.5]} 12...
Qc7 {[%clk 0:02:39.4]} 13. Kb1 {[%clk 0:02:16.3]} 13... e4 {[%clk 0:02:37.3]}
14. Qh3 {[%clk 0:02:02.3]} 14... d5 {[%clk 0:02:36.5]} 15. Be3 {[%clk
0:01:59.2]} 15... Bc5 {[%clk 0:02:25.6]} 16. g4 {[%clk 0:01:44]} 16... Bxe3
{[%clk 0:01:42.1]} 17. Qxe3 {[%clk 0:01:42]} 17... Nxg4 {[%clk 0:01:43.5]} 18.
Qg3 {[%clk 0:01:42.9]} 18... Ngf6 {[%clk 0:01:42.2]} 19. Rg1 {[%clk 0:01:39.7]}
19... g6 {[%clk 0:01:42.6]} 20. fxg6 {[%clk 0:01:30.6]} 20... hxg6 {[%clk
0:01:43.4]} 21. Bh3 {[%clk 0:01:29.5]} 21... Rcd8 {[%clk 0:01:29.3]} 22. Bxd7
{[%clk 0:01:21.7]} 22... Rxd7 {[%clk 0:01:28.8]} 23. Qg5 {[%clk 0:01:22]} 23...
Nh7 {[%clk 0:01:22.2]} 24. Qh6 {[%clk 0:01:22.1]} 24... Qc6 {[%clk 0:01:08.1]}
25. f5 {[%clk 0:01:20.4]} 25... g5 {[%clk 0:01:09.2]} 26. Rxg5+ {[%clk
0:01:13.3]} 26... Nxg5 {[%clk 0:01:10.6]} 27. Qxg5+ {[%clk 0:01:11.4]} 27... Kh7
{[%clk 0:01:11.5]} 28. f6 {[%clk 0:01:04.4]} 1-0

[Event "*** MasterClass Titled Tuesday Blitz"]
[Site "Chess.com"]
[Date "2017.10.03"]
[Round "8"]
[White "Keaton87"]
[Black "wonderfultime"]
[Result "0-1"]
[WhiteElo "2475"]
[BlackElo "2591"]
[TimeControl "180+2"]
[EndTime "14:48:05 PDT"]
[Termination "wonderfultime won by checkmate"]

1. e4 {[%clk 0:03:01.9]} 1... e6 {[%clk 0:03:01]} 2. d4 {[%clk 0:03:02.2]} 2...
d5 {[%clk 0:03:02.3]} 3. Nd2 {[%clk 0:03:03.9]} 3... c5 {[%clk 0:03:03.2]} 4.
Ngf3 {[%clk 0:03:03.7]} 4... cxd4 {[%clk 0:03:00.9]} 5. exd5 {[%clk 0:03:04.2]}
5... Qxd5 {[%clk 0:03:01.1]} 6. Bc4 {[%clk 0:03:04.9]} 6... Qd7 {[%clk
0:03:02.6]} 7. O-O {[%clk 0:03:04.5]} 7... Nf6 {[%clk 0:03:03.8]} 8. Nb3 {[%clk
0:03:01.1]} 8... Nc6 {[%clk 0:03:04.9]} 9. Qe2 {[%clk 0:02:58.3]} 9... Be7
{[%clk 0:02:59]} 10. Rd1 {[%clk 0:02:59.2]} 10... O-O {[%clk 0:02:53.3]} 11.
Nbxd4 {[%clk 0:03:00.2]} 11... Nxd4 {[%clk 0:02:54.5]} 12. Nxd4 {[%clk
0:03:00.6]} 12... Qc7 {[%clk 0:02:55.7]} 13. Bb3 {[%clk 0:02:40.7]} 13... a6
{[%clk 0:02:43.4]} 14. a4 {[%clk 0:02:40.9]} 14... Rd8 {[%clk 0:02:35.6]} 15. c3
{[%clk 0:02:40.8]} 15... e5 {[%clk 0:02:18.4]} 16. Nf3 {[%clk 0:02:36.3]} 16...
Rxd1+ {[%clk 0:02:16.6]} 17. Qxd1 {[%clk 0:02:30.6]} 17... Bg4 {[%clk
0:02:16.6]} 18. h3 {[%clk 0:02:23.4]} 18... Bh5 {[%clk 0:02:05.9]} 19. g4 {[%clk
0:02:17.9]} 19... Bg6 {[%clk 0:02:06.9]} 20. Qe2 {[%clk 0:02:12.1]} 20... Bc5
{[%clk 0:01:42.7]} 21. Qxe5 {[%clk 0:01:59.9]} 21... Qb6 {[%clk 0:01:42.7]} 22.
Bc4 {[%clk 0:01:10.6]} 22... Re8 {[%clk 0:01:38.2]} 23. Qf4 {[%clk 0:01:06.9]}
23... Bxf2+ {[%clk 0:01:35.7]} 24. Kg2 {[%clk 0:01:07]} 24... Bc5 {[%clk
0:01:24.4]} 25. b4 {[%clk 0:01:07.4]} 25... Bd6 {[%clk 0:01:24.5]} 26. Qd4
{[%clk 0:01:08.6]} 26... Qc7 {[%clk 0:01:22.2]} 27. Bd3 {[%clk 0:01:02.5]} 27...
Ne4 {[%clk 0:01:19]} 28. Bb2 {[%clk 0:00:52.6]} 28... Bc5 {[%clk 0:01:12.7]} 29.
bxc5 {[%clk 0:00:41]} 29... Qg3+ {[%clk 0:01:13.3]} 30. Kf1 {[%clk 0:00:39.7]}
30... Qxf3+ {[%clk 0:01:13]} 31. Kg1 {[%clk 0:00:40.5]} 31... Qg3+ {[%clk
0:01:13.6]} 32. Kf1 {[%clk 0:00:41.8]} 32... Nd2# {[%clk 0:01:14.7]} 0-1

[Event "*** MasterClass Titled Tuesday Blitz"]
[Site "Chess.com"]
[Date "2017.10.03"]
[Round "8"]
[White "Jungle_Jaguar"]
[Black "bancsoo"]
[Result "0-1"]
[WhiteElo "2374"]
[BlackElo "2566"]
[TimeControl "180+2"]
[EndTime "14:48:11 PDT"]
[Termination "bancsoo won by resignation"]

1. e4 {[%clk 0:03:01.9]} 1... c5 {[%clk 0:03:00.2]} 2. Nf3 {[%clk 0:03:03.3]}
2... Nc6 {[%clk 0:03:01.4]} 3. d4 {[%clk 0:03:04.9]} 3... cxd4 {[%clk
0:03:02.4]} 4. Nxd4 {[%clk 0:03:06.8]} 4... Nf6 {[%clk 0:03:03.9]} 5. Nc3 {[%clk
0:03:08.2]} 5... e5 {[%clk 0:03:05]} 6. Ndb5 {[%clk 0:03:09.6]} 6... d6 {[%clk
0:03:06.2]} 7. Bg5 {[%clk 0:03:09.8]} 7... a6 {[%clk 0:03:07.3]} 8. Na3 {[%clk
0:03:11.4]} 8... b5 {[%clk 0:03:08.7]} 9. Nd5 {[%clk 0:03:13]} 9... Be7 {[%clk
0:03:10]} 10. Bxf6 {[%clk 0:03:14.5]} 10... Bxf6 {[%clk 0:03:11.3]} 11. c4
{[%clk 0:03:15.9]} 11... b4 {[%clk 0:03:12.1]} 12. Nc2 {[%clk 0:03:17.5]} 12...
a5 {[%clk 0:03:13.3]} 13. g3 {[%clk 0:03:17.2]} 13... O-O {[%clk 0:03:12.7]} 14.
h4 {[%clk 0:03:17.3]} 14... Be6 {[%clk 0:03:11.7]} 15. Bh3 {[%clk 0:03:17.5]}
15... Rb8 {[%clk 0:03:12.4]} 16. Bxe6 {[%clk 0:03:11.2]} 16... fxe6 {[%clk
0:03:12.9]} 17. Nde3 {[%clk 0:03:12.8]} 17... Be7 {[%clk 0:02:44.9]} 18. O-O
{[%clk 0:03:09.3]} 18... Rb7 {[%clk 0:02:39.8]} 19. b3 {[%clk 0:03:00]} 19...
Qe8 {[%clk 0:02:36.2]} 20. Qg4 {[%clk 0:02:51.3]} 20... Qf7 {[%clk 0:02:33]} 21.
Rad1 {[%clk 0:02:51.8]} 21... Rd8 {[%clk 0:02:14.8]} 22. f4 {[%clk 0:02:50.4]}
22... exf4 {[%clk 0:02:09]} 23. Rxf4 {[%clk 0:02:51]} 23... Qg6 {[%clk
0:02:10.1]} 24. Qxg6 {[%clk 0:02:38.6]} 24... hxg6 {[%clk 0:02:10.8]} 25. Ng4
{[%clk 0:02:34.8]} 25... a4 {[%clk 0:02:02.7]} 26. Rf3 {[%clk 0:02:31]} 26...
axb3 {[%clk 0:02:02.7]} 27. axb3 {[%clk 0:02:32]} 27... Ra7 {[%clk 0:02:02.7]}
28. Rfd3 {[%clk 0:02:22.6]} 28... Ra2 {[%clk 0:02:02.9]} 29. R1d2 {[%clk
0:02:16.4]} 29... Rda8 {[%clk 0:02:01.5]} 30. Kg2 {[%clk 0:02:12.3]} 30... Rb2
{[%clk 0:02:00.8]} 31. Nd4 {[%clk 0:02:05.4]} 31... Raa2 {[%clk 0:01:51.9]} 32.
Rf2 {[%clk 0:01:39]} 32... Ne5 {[%clk 0:01:27.8]} 33. Nxe5 {[%clk 0:01:20.7]}
33... Rxf2+ {[%clk 0:01:27.7]} 34. Kh3 {[%clk 0:01:22.2]} 34... dxe5 {[%clk
0:01:28]} 35. Nxe6 {[%clk 0:01:23.7]} 35... Rad2 {[%clk 0:01:26]} 36. Re3 {[%clk
0:01:24]} 36... Kf7 {[%clk 0:01:25.4]} 37. Nc7 {[%clk 0:01:24.2]} 37... Bc5
{[%clk 0:01:26.1]} 38. Re1 {[%clk 0:01:24.5]} 38... Rf3 {[%clk 0:01:23.4]} 39.
Kg4 {[%clk 0:01:24.4]} 39... Rdd3 {[%clk 0:01:20.3]} 0-1

[Event "*** MasterClass Titled Tuesday Blitz"]
[Site "Chess.com"]
[Date "2017.10.03"]
[Round "8"]
[White "chess2matters"]
[Black "PowerThinking2650"]
[Result "1-0"]
[WhiteElo "2342"]
[BlackElo "2153"]
[TimeControl "180+2"]
[EndTime "14:48:22 PDT"]
[Termination "chess2matters won on time"]

1. d4 {[%clk 0:03:01.9]} 1... Nf6 {[%clk 0:03:00]} 2. c4 {[%clk 0:03:02.6]} 2...
g6 {[%clk 0:02:57.8]} 3. g3 {[%clk 0:03:03.6]} 3... Bg7 {[%clk 0:02:55.5]} 4.
Bg2 {[%clk 0:03:04.6]} 4... O-O {[%clk 0:02:56.9]} 5. Nc3 {[%clk 0:03:05.4]}
5... d6 {[%clk 0:02:57.5]} 6. Nf3 {[%clk 0:03:06]} 6... Nbd7 {[%clk 0:02:58.9]}
7. O-O {[%clk 0:03:06.9]} 7... e5 {[%clk 0:03:00.3]} 8. e4 {[%clk 0:03:07.8]}
8... exd4 {[%clk 0:02:58.2]} 9. Nxd4 {[%clk 0:03:09.7]} 9... Re8 {[%clk
0:02:59.5]} 10. h3 {[%clk 0:03:10.3]} 10... Nc5 {[%clk 0:02:59.5]} 11. Re1
{[%clk 0:03:09.5]} 11... Bd7 {[%clk 0:03:00.4]} 12. Bf4 {[%clk 0:02:46.1]} 12...
Qc8 {[%clk 0:02:14.9]} 13. Kh2 {[%clk 0:02:44.4]} 13... h6 {[%clk 0:02:04.4]}
14. Qd2 {[%clk 0:02:43.4]} 14... g5 {[%clk 0:02:00.8]} 15. Be3 {[%clk
0:02:44.1]} 15... Nfxe4 {[%clk 0:01:56.3]} 16. Nxe4 {[%clk 0:02:44.8]} 16...
Nxe4 {[%clk 0:01:57.1]} 17. Qc2 {[%clk 0:02:46.3]} 17... Nc5 {[%clk 0:01:18.4]}
18. b4 {[%clk 0:02:43.1]} 18... Na4 {[%clk 0:01:10.8]} 19. Rad1 {[%clk
0:02:41.9]} 19... a5 {[%clk 0:01:02.2]} 20. b5 {[%clk 0:02:38.6]} 20... Nc5
{[%clk 0:00:56.7]} 21. Bd5 {[%clk 0:02:30.5]} 21... c6 {[%clk 0:00:52.7]} 22.
bxc6 {[%clk 0:02:30.7]} 22... bxc6 {[%clk 0:00:53.7]} 23. Bg2 {[%clk 0:02:32.2]}
23... Rb8 {[%clk 0:00:50.1]} 24. Nb3 {[%clk 0:02:24.3]} 24... Bf5 {[%clk
0:00:45.9]} 25. Qd2 {[%clk 0:02:16.2]} 25... Nd3 {[%clk 0:00:38.9]} 26. Rf1
{[%clk 0:02:13.7]} 26... a4 {[%clk 0:00:16.4]} 27. Nd4 {[%clk 0:02:14.2]} 27...
Bg6 {[%clk 0:00:12.1]} 28. Nxc6 {[%clk 0:02:10]} 28... Rb2 {[%clk 0:00:12.5]}
29. Qa5 {[%clk 0:02:06.7]} 29... Rxe3 {[%clk 0:00:11.7]} 30. Na7 {[%clk
0:01:46.3]} 30... Qb7 {[%clk 0:00:07.9]} 31. Bxb7 {[%clk 0:01:45.8]} 1-0

[Event "*** MasterClass Titled Tuesday Blitz"]
[Site "Chess.com"]
[Date "2017.10.03"]
[Round "8"]
[White "Superfelix"]
[Black "catalin009"]
[Result "1-0"]
[WhiteElo "2331"]
[BlackElo "2367"]
[TimeControl "180+2"]
[EndTime "14:48:44 PDT"]
[Termination "Superfelix won by resignation"]

1. e4 {[%clk 0:03:01.9]} 1... e6 {[%clk 0:02:58.2]} 2. d4 {[%clk 0:03:01.3]}
2... d5 {[%clk 0:02:59.8]} 3. Nd2 {[%clk 0:02:59.3]} 3... c5 {[%clk 0:02:58.2]}
4. exd5 {[%clk 0:02:59.8]} 4... Qxd5 {[%clk 0:02:58.8]} 5. Ngf3 {[%clk
0:03:01.2]} 5... cxd4 {[%clk 0:02:55]} 6. Bc4 {[%clk 0:03:02.7]} 6... Qd7 {[%clk
0:02:56.1]} 7. O-O {[%clk 0:03:04.3]} 7... a6 {[%clk 0:02:54.1]} 8. a4 {[%clk
0:02:59.8]} 8... Nf6 {[%clk 0:02:50.6]} 9. Nb3 {[%clk 0:03:00.7]} 9... b6 {[%clk
0:02:45.8]} 10. Nbxd4 {[%clk 0:02:59.5]} 10... Bb7 {[%clk 0:02:46.4]} 11. Re1
{[%clk 0:03:00.6]} 11... Be7 {[%clk 0:02:45.2]} 12. Ne5 {[%clk 0:02:52.4]} 12...
Qc7 {[%clk 0:02:41.8]} 13. Bxe6 {[%clk 0:02:24.7]} 13... fxe6 {[%clk 0:02:18.6]}
14. Nxe6 {[%clk 0:02:24.8]} 14... Qd6 {[%clk 0:02:14.8]} 15. Nxg7+ {[%clk
0:02:22.5]} 15... Kf8 {[%clk 0:02:14.1]} 16. Ne6+ {[%clk 0:01:35.2]} 16... Qxe6
{[%clk 0:02:04.7]} 17. Ng6+ {[%clk 0:01:34.3]} 17... hxg6 {[%clk 0:01:58.2]} 18.
Rxe6 {[%clk 0:01:35.1]} 18... Nbd7 {[%clk 0:01:50]} 19. Bg5 {[%clk 0:01:23.5]}
19... Bd5 {[%clk 0:01:39.2]} 20. Bxf6 {[%clk 0:01:09.5]} 20... Nxf6 {[%clk
0:01:39]} 21. Rxf6+ {[%clk 0:01:05.7]} 21... Bxf6 {[%clk 0:01:35.7]} 22. Qxd5
{[%clk 0:01:06.5]} 22... Kg7 {[%clk 0:01:37.6]} 23. Qb7+ {[%clk 0:01:06.3]}
23... Kh6 {[%clk 0:01:37]} 24. Ra3 {[%clk 0:01:05.3]} 24... Rad8 {[%clk
0:01:33.7]} 25. Rh3+ {[%clk 0:01:04.8]} 25... Kg5 {[%clk 0:01:35.2]} 26. Rg3+
{[%clk 0:01:06]} 26... Kh6 {[%clk 0:01:35.8]} 27. Rh3+ {[%clk 0:00:42.1]} 27...
Kg5 {[%clk 0:01:35.7]} 28. Rd3 {[%clk 0:00:33.4]} 28... Rhe8 {[%clk 0:01:36.2]}
29. h4+ {[%clk 0:00:33.8]} 29... Kxh4 {[%clk 0:01:24.4]} 30. Qxb6 {[%clk
0:00:30.5]} 30... Rxd3 {[%clk 0:00:51.6]} 31. Qxf6+ {[%clk 0:00:29.9]} 1-0

[Event "*** MasterClass Titled Tuesday Blitz"]
[Site "Chess.com"]
[Date "2017.10.03"]
[Round "8"]
[White "SCIM"]
[Black "ehrenfeld"]
[Result "1-0"]
[WhiteElo "2444"]
[BlackElo "2333"]
[TimeControl "180+2"]
[EndTime "14:48:53 PDT"]
[Termination "SCIM won by resignation"]

1. d4 {[%clk 0:02:59.1]} 1... Nf6 {[%clk 0:03:00.2]} 2. c4 {[%clk 0:02:59.6]}
2... e6 {[%clk 0:03:01.1]} 3. Nc3 {[%clk 0:03:00.6]} 3... Bb4 {[%clk 0:03:01.9]}
4. Qc2 {[%clk 0:03:01.5]} 4... c5 {[%clk 0:03:01]} 5. dxc5 {[%clk 0:03:01.1]}
5... Bxc5 {[%clk 0:03:00.4]} 6. Nf3 {[%clk 0:02:54.8]} 6... Qb6 {[%clk
0:03:00.8]} 7. e3 {[%clk 0:02:53.2]} 7... Qc7 {[%clk 0:03:01.2]} 8. g3 {[%clk
0:02:41.7]} 8... b6 {[%clk 0:02:55.2]} 9. Bg2 {[%clk 0:02:41.5]} 9... Bb7 {[%clk
0:02:56.2]} 10. O-O {[%clk 0:02:42.2]} 10... a6 {[%clk 0:02:56.8]} 11. b3 {[%clk
0:02:40.3]} 11... Be7 {[%clk 0:02:55.9]} 12. Bb2 {[%clk 0:02:40]} 12... d6
{[%clk 0:02:55.9]} 13. Rfd1 {[%clk 0:02:38.2]} 13... Nbd7 {[%clk 0:02:56.7]} 14.
Rac1 {[%clk 0:02:34.8]} 14... O-O {[%clk 0:02:57]} 15. Ne1 {[%clk 0:02:36.3]}
15... Rac8 {[%clk 0:02:52.5]} 16. Qe2 {[%clk 0:02:31.7]} 16... Rfd8 {[%clk
0:02:46.2]} 17. h3 {[%clk 0:02:25.5]} 17... Bxg2 {[%clk 0:02:44.3]} 18. Nxg2
{[%clk 0:02:25.8]} 18... Qb7 {[%clk 0:02:43.8]} 19. Nf4 {[%clk 0:02:16.4]} 19...
Ne5 {[%clk 0:02:42.2]} 20. e4 {[%clk 0:02:09]} 20... b5 {[%clk 0:02:42.5]} 21.
cxb5 {[%clk 0:02:04.2]} 21... axb5 {[%clk 0:02:40.2]} 22. Qxb5 {[%clk
0:02:03.4]} 22... Qxb5 {[%clk 0:02:40.4]} 23. Nxb5 {[%clk 0:02:03.7]} 23... Nxe4
{[%clk 0:02:36]} 24. Nd3 {[%clk 0:01:18.6]} 24... Rxc1 {[%clk 0:02:27.9]} 25.
Bxc1 {[%clk 0:01:19]} 25... Nxd3 {[%clk 0:02:26.9]} 26. Rxd3 {[%clk 0:01:18.7]}
26... d5 {[%clk 0:02:27.9]} 27. Be3 {[%clk 0:01:11.1]} 27... Rc8 {[%clk
0:02:28.2]} 28. a4 {[%clk 0:01:08.5]} 28... Bb4 {[%clk 0:02:20.4]} 29. Kg2
{[%clk 0:01:06]} 29... Rc2 {[%clk 0:02:14.9]} 30. g4 {[%clk 0:01:00.2]} 30... f6
{[%clk 0:02:02.3]} 31. Nd4 {[%clk 0:00:59.6]} 31... Rb2 {[%clk 0:01:57]} 32.
Nxe6 {[%clk 0:00:59.1]} 32... Kf7 {[%clk 0:01:49.4]} 33. Nf4 {[%clk 0:00:44.4]}
33... Nc5 {[%clk 0:01:30.3]} 34. Rxd5 {[%clk 0:00:36.7]} 34... Nxb3 {[%clk
0:01:26.6]} 35. Rd7+ {[%clk 0:00:32.7]} 35... Kg8 {[%clk 0:01:22.1]} 36. Rb7
{[%clk 0:00:33.5]} 36... Na5 {[%clk 0:01:17.7]} 37. Rb8+ {[%clk 0:00:32.6]}
37... Kf7 {[%clk 0:01:18.2]} 38. Nd3 {[%clk 0:00:33]} 1-0

[Event "*** MasterClass Titled Tuesday Blitz"]
[Site "Chess.com"]
[Date "2017.10.03"]
[Round "8"]
[White "Lawliet64"]
[Black "rickkrewson"]
[Result "1-0"]
[WhiteElo "2058"]
[BlackElo "1770"]
[TimeControl "180+2"]
[EndTime "14:48:59 PDT"]
[Termination "Lawliet64 won by resignation"]

1. e4 {[%clk 0:03:00.3]} 1... Nc6 {[%clk 0:02:58.7]} 2. Nc3 {[%clk 0:02:59.1]}
2... Nf6 {[%clk 0:02:56.9]} 3. Bc4 {[%clk 0:02:58.3]} 3... e6 {[%clk 0:02:57.2]}
4. d3 {[%clk 0:02:58.5]} 4... d5 {[%clk 0:02:58.2]} 5. Bb3 {[%clk 0:02:57]} 5...
dxe4 {[%clk 0:02:55.8]} 6. Nxe4 {[%clk 0:02:57.6]} 6... Nxe4 {[%clk 0:02:56.5]}
7. dxe4 {[%clk 0:02:59.1]} 7... Qxd1+ {[%clk 0:02:57]} 8. Kxd1 {[%clk
0:03:00.6]} 8... Bc5 {[%clk 0:02:57.1]} 9. Ke1 {[%clk 0:02:53.1]} 9... O-O
{[%clk 0:02:46.3]} 10. c3 {[%clk 0:02:53.7]} 10... b6 {[%clk 0:02:17.7]} 11. f3
{[%clk 0:02:43.4]} 11... Bb7 {[%clk 0:02:15.5]} 12. Ne2 {[%clk 0:02:33.1]} 12...
Rfd8 {[%clk 0:02:08.4]} 13. Bf4 {[%clk 0:02:31.5]} 13... e5 {[%clk 0:02:03.5]}
14. Bg5 {[%clk 0:02:29.4]} 14... Rd7 {[%clk 0:01:54.6]} 15. Rd1 {[%clk
0:02:22.7]} 15... Rxd1+ {[%clk 0:01:52.7]} 16. Kxd1 {[%clk 0:02:21.7]} 16... h6
{[%clk 0:01:44.2]} 17. Bh4 {[%clk 0:02:20.7]} 17... Na5 {[%clk 0:01:37.9]} 18.
Kc2 {[%clk 0:02:09]} 18... Nxb3 {[%clk 0:00:54.2]} 19. axb3 {[%clk 0:02:07.5]}
19... Ba6 {[%clk 0:00:52.7]} 20. Nc1 {[%clk 0:02:02.8]} 20... g5 {[%clk
0:00:51.9]} 21. Bg3 {[%clk 0:02:02.1]} 21... f6 {[%clk 0:00:52.2]} 22. Rd1
{[%clk 0:01:56.1]} 22... Bd6 {[%clk 0:00:51.6]} 23. Bf2 {[%clk 0:01:53.2]} 23...
Rd8 {[%clk 0:00:51.5]} 24. c4 {[%clk 0:01:40.4]} 24... Kf7 {[%clk 0:00:47.3]}
25. Ne2 {[%clk 0:01:39.7]} 25... Bc8 {[%clk 0:00:42.5]} 26. h4 {[%clk 0:01:35]}
26... Be6 {[%clk 0:00:41]} 27. hxg5 {[%clk 0:01:34.7]} 27... hxg5 {[%clk
0:00:41.3]} 28. Rh1 {[%clk 0:01:35.7]} 28... Kg7 {[%clk 0:00:42.2]} 29. Ng3
{[%clk 0:01:32.2]} 29... Rh8 {[%clk 0:00:29.3]} 30. Rxh8 {[%clk 0:01:17.3]}
30... Kxh8 {[%clk 0:00:27.6]} 31. Kc3 {[%clk 0:01:17.6]} 31... c5 {[%clk
0:00:22.2]} 32. Nf5 {[%clk 0:01:13.2]} 32... Bxf5 {[%clk 0:00:22.2]} 33. exf5
{[%clk 0:01:13.8]} 33... Kg7 {[%clk 0:00:23.1]} 34. Kd3 {[%clk 0:01:15.3]} 34...
Kh6 {[%clk 0:00:21]} 35. Ke4 {[%clk 0:01:15.4]} 35... Kh5 {[%clk 0:00:21.2]} 36.
Kd5 {[%clk 0:01:15.2]} 36... Be7 {[%clk 0:00:20.9]} 37. Ke6 {[%clk 0:01:09.6]}
37... Bd8 {[%clk 0:00:21.3]} 38. g4+ {[%clk 0:01:07.8]} 1-0

[Event "*** MasterClass Titled Tuesday Blitz"]
[Site "Chess.com"]
[Date "2017.10.03"]
[Round "8"]
[White "TryingToGetBetter94"]
[Black "toad"]
[Result "0-1"]
[WhiteElo "2286"]
[BlackElo "2134"]
[TimeControl "180+2"]
[EndTime "14:49:08 PDT"]
[Termination "toad won by checkmate"]

1. d4 {[%clk 0:03:01.9]} 1... Nf6 {[%clk 0:02:54.1]} 2. c4 {[%clk 0:03:00.5]}
2... g6 {[%clk 0:02:55.2]} 3. Nc3 {[%clk 0:03:02.1]} 3... d5 {[%clk 0:02:55.6]}
4. cxd5 {[%clk 0:03:01.7]} 4... Nxd5 {[%clk 0:02:57.5]} 5. e4 {[%clk 0:03:03.2]}
5... Nxc3 {[%clk 0:02:58.5]} 6. bxc3 {[%clk 0:03:05.1]} 6... Bg7 {[%clk
0:02:59.5]} 7. Bc4 {[%clk 0:03:05.3]} 7... c5 {[%clk 0:02:59.7]} 8. Nf3 {[%clk
0:03:04.6]} 8... O-O {[%clk 0:02:56.5]} 9. Be3 {[%clk 0:03:05.7]} 9... Nc6
{[%clk 0:02:57]} 10. Rc1 {[%clk 0:03:05.4]} 10... cxd4 {[%clk 0:02:53]} 11. cxd4
{[%clk 0:03:07.3]} 11... Bg4 {[%clk 0:02:54.3]} 12. d5 {[%clk 0:03:06.9]} 12...
Ne5 {[%clk 0:02:55.5]} 13. Be2 {[%clk 0:03:06.1]} 13... Nxf3+ {[%clk 0:02:54.6]}
14. gxf3 {[%clk 0:03:04.7]} 14... Bh3 {[%clk 0:02:54.7]} 15. f4 {[%clk
0:02:57.8]} 15... Bg2 {[%clk 0:02:47]} 16. Bf3 {[%clk 0:02:51.4]} 16... Bxh1
{[%clk 0:02:47.8]} 17. Bxh1 {[%clk 0:02:52.4]} 17... Rc8 {[%clk 0:02:31.6]} 18.
Rb1 {[%clk 0:02:37.1]} 18... b6 {[%clk 0:02:26.5]} 19. e5 {[%clk 0:02:36.2]}
19... Qd7 {[%clk 0:02:13.7]} 20. Bg2 {[%clk 0:02:24.6]} 20... Qf5 {[%clk
0:02:13.6]} 21. Kf1 {[%clk 0:02:18.7]} 21... Qc2 {[%clk 0:02:02.7]} 22. Qe1
{[%clk 0:02:09]} 22... Rfd8 {[%clk 0:02:02.6]} 23. Kg1 {[%clk 0:02:03.2]} 23...
Qf5 {[%clk 0:01:46.5]} 24. a4 {[%clk 0:01:56.6]} 24... Rc2 {[%clk 0:01:47]} 25.
a5 {[%clk 0:01:45.8]} 25... bxa5 {[%clk 0:01:43.7]} 26. Rb7 {[%clk 0:01:46.7]}
26... Rdc8 {[%clk 0:01:14.3]} 27. Rxe7 {[%clk 0:01:37.7]} 27... Bf8 {[%clk
0:01:15.5]} 28. Rxa7 {[%clk 0:01:25.4]} 28... Bc5 {[%clk 0:01:16.6]} 29. Rxa5
{[%clk 0:00:30.9]} 29... Bb4 {[%clk 0:00:46.2]} 30. Qxb4 {[%clk 0:00:03.3]}
30... Rc1+ {[%clk 0:00:46.9]} 31. Bxc1 {[%clk 0:00:05.2]} 31... Rxc1+ {[%clk
0:00:47.9]} 32. Bf1 {[%clk 0:00:06.5]} 32... Qg4+ {[%clk 0:00:49.1]} 33. Kh1
{[%clk 0:00:08]} 33... Rxf1# {[%clk 0:00:50.1]} 0-1